fUST/lending_fUST_20240826
["ID","MTS","AMOUNT","RATE_DAILY","PERIOD"]
[335959668,1724643057358,-702.93,0.00012987,2]
[335959669,1724643057367,-679.72,0.00012987,2]
[335959670,1724643057377,-828.87,0.00012987,2]
[335959671,1724643057386,-1146.09,0.00012987,2]
[335959672,1724643057396,-500.0,0.00012987,2]
[335959673,1724643057405,-500.0,0.00012987,2]
[335959674,1724643057415,-641.37,0.00012987,2]
[335959675,1724643057424,-500.0,0.00012987,2]
[335959676,1724643057433,-500.0,0.00012987,2]
[335959677,1724643057443,-568.59,0.00012987,2]
[335959678,1724643057452,-500.0,0.00012987,2]
[335959679,1724643057461,-794.77,0.00012987,2]
[335959680,1724643057471,-1272.01,0.00012987,2]
[335959681,1724643057480,-500.0,0.00012987,2]
[335959682,1724643057489,-500.0,0.00012987,2]
[335959683,1724643057499,-500.0,0.00012987,2]
[335959684,1724643057508,-655.11,0.00012987,2]
[335959685,1724643057518,-618.5,0.00012987,2]
[335959686,1724643057527,-500.0,0.00012987,2]
[335959687,1724643057537,-889.44,0.00012987,2]
[335959688,1724643057546,-657.61,0.00012987,2]
[335959689,1724643057555,-772.14,0.00012987,2]
[335959690,1724643057565,-688.32,0.00012987,2]
[335959691,1724643057574,-500.0,0.00012987,2]
[335959692,1724643057583,-500.0,0.00012987,2]
[335959693,1724643057593,-500.0,0.00012987,2]
[335959694,1724643057605,-500.0,0.00012987,2]
[335959695,1724643057614,-500.0,0.00012987,2]
[335959696,1724643057623,-500.0,0.00012987,2]
[335959697,1724643057632,-210.39215594,0.00012989,2]
[335959698,1724643057642,-1614.5867324,0.00012989,2]
[335959699,1724643057652,-2167.77324026,0.00012989,2]
[335959700,1724643057662,-2129.48158209,0.00012989,2]
[335959701,1724643057671,-2597.51595188,0.00012989,2]
[335959702,1724643057680,-500.0,0.00012998,2]
[335959703,1724643057690,-1500.0,0.00012999,2]
[335959704,1724643057700,-500.0,0.00013,2]
[335959705,1724643057709,-646.96149808,0.00013,2]
[335959706,1724643057719,-863.13231421,0.00013,2]
[335959707,1724643057728,-164.61487591,0.00013025,2]
[335959708,1724643057738,-154.85649844,0.00013025,2]
[335959709,1724643057747,-162.88096891,0.00013025,2]
[335959710,1724643057756,-1000.0,0.00013065,2]
[335959711,1724643057766,-1000.0,0.00013087,2]
[335959712,1724643057775,-604.0,0.000131,2]
[335959713,1724643057785,-1000.0,0.00013153,2]
[335959714,1724643057794,-882.92,0.00013191,2]
[335959715,1724643057803,-8144.62,0.00013191,2]
[335959716,1724643057812,-500.0,0.00013191,2]
[335959717,1724643057821,-500.0,0.00013191,2]
[335959718,1724643057830,-708.94,0.00013191,2]
[335959719,1724643057840,-935.73,0.00013191,2]
[335959720,1724643057849,-11329.8,0.00013191,2]
[335959721,1724643057857,-566.79,0.00013191,2]
[335959722,1724643057866,-620.38,0.00013191,2]
[335959723,1724643057875,-614.08,0.00013191,2]
[335959724,1724643057884,-500.0,0.00013191,2]
[335959725,1724643057894,-610.76,0.00013191,2]
[335959726,1724643057903,-715.19,0.00013191,2]
[335959727,1724643057912,-3084.28,0.00013191,2]
[335959728,1724643057921,-12568.85,0.00013192,2]
[335959729,1724643057930,-165.59152061,0.00013192,2]
[335959730,1724643057939,-3333.57,0.00013192,2]
[335959731,1724643057948,-585.87,0.00013192,2]
[335959732,1724643057958,-959.92,0.00013192,2]
[335959733,1724643057967,-4147.97,0.00013192,2]
[335959734,1724643057977,-500.0,0.00013192,2]
[335959735,1724643057987,-1458.87,0.00013192,2]
[335959736,1724643057996,-3113.83,0.00013192,2]
[335959737,1724643058005,-500.0,0.00013192,2]
[335959738,1724643058014,-500.0,0.00013192,2]
[335959739,1724643058024,-639.78,0.00013192,2]
[335959740,1724643058033,-33463.22,0.00013192,2]
[335959741,1724643058042,-716.31,0.00013192,2]
[335959742,1724643058053,-824.65,0.00013192,2]
[335959743,1724643058064,-505.67,0.00013192,2]
[335959744,1724643058075,-1864.62,0.00013192,2]
[335959745,1724643058085,-572.94,0.00013192,2]
[335959746,1724643058095,-806.09,0.00013192,2]
[335959747,1724643058106,-501.38,0.00013192,2]
[335959748,1724643058116,-1383.81,0.00013192,2]
[335959749,1724643058127,-528.11,0.00013192,2]
[335959750,1724643058138,-516.66729448,0.00013192,2]
[335959751,1724643058150,-1521.34,0.00013192,2]
[335959752,1724643058160,-500.0,0.00013192,2]
[335959753,1724643058169,-500.0,0.00013192,2]
[335959754,1724643058179,-2687.73,0.00013192,2]
[335959755,1724643058189,-862.59,0.00013192,2]
[335959756,1724643058199,-500.0,0.00013192,2]
[335959757,1724643058208,-500.0,0.00013192,2]
[335959758,1724643058217,-971.72,0.00013192,2]
[335959759,1724643058227,-821.96,0.00013192,2]
[335959760,1724643058236,-686.1,0.00013192,2]
[335959761,1724643058246,-1225.05,0.00013192,2]
[335959762,1724643058255,-966.21,0.00013192,2]
[335959763,1724643058264,-500.0,0.00013192,2]
[335959764,1724643058274,-932.37,0.00013193,2]
[335959765,1724643058283,-500.0,0.00013193,2]
[335959766,1724643058291,-670.27,0.00013193,2]
[335959767,1724643058301,-500.84,0.00013193,2]
[335959768,1724643058310,-500.0,0.00013193,2]
[335959769,1724643058323,-500.0,0.00013193,2]
[335959770,1724643058332,-500.0,0.00013193,2]
[335959771,1724643058342,-500.0,0.00013193,2]
[335959772,1724643058351,-964.89,0.00013193,2]
[335959773,1724643058361,-1045.08,0.00013193,2]
[335959774,1724643058371,-587.84,0.00013193,2]
[335959775,1724643058381,-500.0,0.00013193,2]
[335959776,1724643058391,-854.3,0.00013193,2]
[335959777,1724643058402,-741.68,0.00013193,2]
[335959778,1724643058412,-857.95,0.00013193,2]
[335959779,1724643058424,-978.77,0.00013193,2]
[335959780,1724643058434,-791.04,0.00013193,2]
[335959781,1724643058444,-586.6,0.00013193,2]
[335959782,1724643058454,-1204.03,0.00013193,2]
[335959783,1724643058463,-653.55,0.00013193,2]
[335959784,1724643058474,-659.93,0.00013193,2]
[335959785,1724643058484,-500.0,0.00013193,2]
[335959786,1724643058494,-1131.85,0.00013193,2]
[335959787,1724643058504,-505.84,0.00013193,2]
[335959788,1724643058515,-588.29,0.00013193,2]
[335959789,1724643058525,-500.0,0.00013193,2]
[335959790,1724643058534,-420.84365521,0.00013193,2]
[335959791,1724643058543,-532.62,0.00013193,2]
[335959792,1724643058553,-500.0,0.00013193,2]
[335959793,1724643058564,-500.0,0.00013193,2]
[335959794,1724643058574,-1851.29332,0.00013193,2]
[335959795,1724643058584,-500.0,0.00013193,2]
[335959796,1724643058594,-1851.29332,0.00013193,2]
[335959797,1724643058604,-720.09,0.00013193,2]
[335959798,1724643058613,-1014.91,0.00013193,2]
[335959799,1724643058622,-500.0,0.00013193,2]
[335959800,1724643058632,-606.59,0.00013193,2]
[335959801,1724643058641,-942.62,0.00013193,2]
[335959802,1724643058651,-683.27,0.00013193,2]
[335959803,1724643058661,-500.0,0.00013193,2]
[335959804,1724643058670,-1060.620156,0.00013193,2]
[335959805,1724643058680,-1060.620156,0.00013193,2]
[335959806,1724643058689,-965.41857294,0.00013193,2]
[335959807,1724643059398,-500.0,0.00012095,2]
[335959808,1724643059409,-500.0,0.00012095,2]
[335959809,1724643059419,-500.0,0.00012369,2]
[335959810,1724643059430,-500.0,0.00012369,2]
[335959811,1724643059441,-500.0,0.00012643,2]
[335959812,1724643059452,-500.0,0.00012643,2]
[335959813,1724643059462,-500.0,0.00012917,2]
[335959814,1724643059472,-500.0,0.00013191,2]
[335959815,1724643059481,-537.33,0.00013193,2]
[335959816,1724643059492,-870.93,0.00013193,2]
[335959817,1724643059501,-767.64,0.00013193,2]
[335959818,1724643059511,-802.98,0.00013193,2]
[335959819,1724643059522,-876.58,0.00013193,2]
[335959820,1724643059533,-607.57,0.00013193,2]
[335959821,1724643059543,-625.73,0.00013193,2]
[335959822,1724643059554,-500.0,0.00013193,2]
[335959823,1724643059565,-500.0,0.00013193,2]
[335959824,1724643059577,-873.32,0.00013193,2]
[335959825,1724643059587,-881.82,0.00013193,2]
[335959826,1724643059599,-525.25134427,0.00013193,2]
[335959827,1724643060066,-500.0,0.00012097,2]
[335959828,1724643060077,-483.67403816,0.00012107,2]
[335959829,1724643085779,3000.0,0.00012008,2]
[335959835,1724643171873,3000.0,0.00012008,2]
[335959838,1724643220360,3094.87417801,0.00011999,2]
[335959841,1724643372310,162.88096891,0.00011999,2]
[335959842,1724643422999,160.860297,0.00011179,2]
[335959843,1724643423208,160.860297,0.00011213,2]
[335959844,1724643423644,160.860297,0.00011247,2]
[335959845,1724643423861,160.860297,0.00011282,2]
[335959846,1724643424069,160.860297,0.00011316,2]
[335959847,1724643424304,160.860297,0.0001135,2]
[335959848,1724643424536,160.860297,0.00011384,2]
[335959849,1724643424788,160.860297,0.00011419,2]
[335959850,1724643424988,160.860297,0.00011453,2]
[335959851,1724643425204,160.860297,0.00011487,2]
[335959852,1724643425472,160.860297,0.00011521,2]
[335959853,1724643425651,160.860297,0.00011556,2]
[335959854,1724643425864,160.860297,0.0001159,2]
[335959855,1724643426283,160.860297,0.00011624,2]
[335959856,1724643426340,160.860297,0.00011659,2]
[335959857,1724643426510,160.860297,0.00011693,2]
[335959858,1724643426728,160.860297,0.00011727,2]
[335959859,1724643426978,160.860297,0.00011761,2]
[335959860,1724643453638,157.21069484,0.00011999,2]
[335959861,1724643514052,24900.0,0.00011091,2]
[335959867,1724643693867,2129.48158209,0.00011999,2]
[335959869,1724643719573,199.29700215,0.00011091,2]
[335959871,1724643723943,627.05961567,0.00011995,2]
[335959873,1724643737725,19522.97338965,0.00011091,2]
[335959875,1724643740939,1682.85237074,0.00011091,2]
[335959877,1724643752968,512.60871333,0.00011091,2]
[335959880,1724643834179,818.13880886,0.00011999,2]
[335959886,1724644057772,19613.62133728,0.00011999,2]
[335959888,1724644086869,171.91472987,0.00011999,2]
[335959889,1724644103463,1671.98997101,0.00011999,2]
[335959896,1724644114214,564.35365413,0.00011986,2]
[335959898,1724644128417,18362.5132624,0.0001108,2]
[335959907,1724644169952,7983.51079151,0.00011999,2]
[335960003,1724644232789,423.58515077,0.00011999,2]
[335960078,1724644233491,544.40401918,0.00011999,2]
[335960164,1724644238294,-500.0,0.00012073,2]
[335960167,1724644238304,-500.0,0.00012073,2]
[335960169,1724644238315,-300.0,0.00012073,2]
[335960171,1724644238326,-300.0,0.00012073,2]
[335960173,1724644238338,-500.0,0.00012073,2]
[335960175,1724644238350,-23164.27002232,0.00012074,2]
[335960180,1724644238388,-6722.74734562,0.00012074,2]
[335960182,1724644238399,-145235.52871606,0.00012074,2]
[335960184,1724644238410,-500.0,0.00012075,2]
[335960186,1724644238422,-675.53,0.00012075,2]
[335960189,1724644238435,-732.51,0.00012075,2]
[335960191,1724644238444,-583.3183481,0.00012075,2]
[335960193,1724644238454,-500.0,0.00012075,2]
[335960195,1724644238463,-500.0,0.00012075,2]
[335960197,1724644238473,-500.0,0.00012075,2]
[335960199,1724644238483,-500.0,0.00012075,2]
[335960201,1724644238492,-500.0,0.00012075,2]
[335960203,1724644238502,-500.0,0.00012075,2]
[335960205,1724644238512,-500.0,0.00012075,2]
[335960207,1724644238521,-489.15234295,0.00012075,2]
[335960209,1724644238533,-500.0,0.00012075,2]
[335960211,1724644238542,-526.74,0.00012075,2]
[335960213,1724644238551,-500.0,0.00012075,2]
[335960215,1724644238561,-500.0,0.00012075,2]
[335960217,1724644238571,-500.0,0.00012075,2]
[335960219,1724644238582,-500.0,0.00012075,2]
[335960221,1724644238593,-500.0,0.00012075,2]
[335960223,1724644238603,-500.0,0.00012075,2]
[335960225,1724644238612,-384.54078142,0.00012075,2]
[335960227,1724644238621,-500.0,0.00012075,2]
[335960229,1724644238630,-500.0,0.00012075,2]
[335960231,1724644238640,-500.0,0.00012075,2]
[335960233,1724644238649,-500.0,0.00012075,2]
[335960235,1724644238659,-500.0,0.00012075,2]
[335960237,1724644238668,-500.0,0.00012075,2]
[335960239,1724644238678,-500.0,0.00012075,2]
[335960241,1724644238687,-500.0,0.00012075,2]
[335960243,1724644238697,-500.0,0.00012075,2]
[335960245,1724644238707,-591.65,0.00012075,2]
[335960247,1724644238717,-500.0,0.00012075,2]
[335960249,1724644238727,-611.14,0.00012075,2]
[335960251,1724644238736,-500.0,0.00012075,2]
[335960253,1724644238746,-500.0,0.00012075,2]
[335960255,1724644238756,-500.0,0.00012075,2]
[335960257,1724644238766,-809.34,0.00012075,2]
[335960259,1724644238777,-500.0,0.00012075,2]
[335960261,1724644238787,-632.92,0.00012075,2]
[335960263,1724644238800,-500.0,0.00012075,2]
[335960265,1724644238809,-500.0,0.00012075,2]
[335960267,1724644238819,-500.0,0.00012075,2]
[335960270,1724644238831,-358.58189356,0.00012075,2]
[335960271,1724644238840,-500.0,0.00012075,2]
[335960273,1724644238849,-877.96,0.00012075,2]
[335960275,1724644238858,-500.0,0.00012075,2]
[335960277,1724644238869,-443.21453025,0.00012075,2]
[335960279,1724644238879,-500.0,0.00012075,2]
[335960280,1724644238888,-500.0,0.00012075,2]
[335960281,1724644238898,-7465.9,0.00012075,2]
[335960282,1724644238924,-500.0,0.00012075,2]
[335960283,1724644238933,-500.0,0.00012075,2]
[335960284,1724644238942,-500.0,0.00012075,2]
[335960285,1724644238954,-500.0,0.00012075,2]
[335960286,1724644238963,-500.0,0.00012075,2]
[335960287,1724644238972,-500.0,0.00012075,2]
[335960288,1724644238982,-500.0,0.00012075,2]
[335960289,1724644238991,-500.0,0.00012075,2]
[335960290,1724644239000,-649.87,0.00012075,2]
[335960291,1724644239010,-500.0,0.00012075,2]
[335960292,1724644239020,-500.0,0.00012075,2]
[335960294,1724644239031,-500.0,0.00012075,2]
[335960296,1724644239040,-500.0,0.00012075,2]
[335960298,1724644239049,-857.75,0.00012075,2]
[335960300,1724644239060,-500.0,0.00012075,2]
[335960302,1724644239070,-500.0,0.00012075,2]
[335960304,1724644239079,-500.0,0.00012075,2]
[335960306,1724644239088,-519.56,0.00012075,2]
[335960308,1724644239097,-500.0,0.00012075,2]
[335960311,1724644239108,-10385.65,0.00012075,2]
[335960313,1724644239120,-500.0,0.00012075,2]
[335960315,1724644239130,-500.0,0.00012075,2]
[335960317,1724644239142,-508.41,0.00012075,2]
[335960319,1724644239153,-500.0,0.00012075,2]
[335960321,1724644239164,-568.69,0.00012075,2]
[335960324,1724644239173,-655.59,0.00012084,2]
[335960325,1724644239182,-854.68,0.00012084,2]
[335960327,1724644239191,-500.0,0.00012084,2]
[335960329,1724644239201,-614.41,0.00012084,2]
[335960331,1724644239210,-500.0,0.00012084,2]
[335960333,1724644239220,-500.0,0.00012084,2]
[335960335,1724644239229,-500.0,0.00012084,2]
[335960337,1724644239239,-500.0,0.00012084,2]
[335960340,1724644239248,-500.0,0.00012084,2]
[335960341,1724644239258,-500.0,0.00012084,2]
[335960344,1724644239268,-884.48,0.00012084,2]
[335960346,1724644239277,-957.99,0.00012084,2]
[335960348,1724644239286,-500.0,0.00012084,2]
[335960350,1724644239295,-538.85,0.00012084,2]
[335960352,1724644239304,-679.87,0.00012084,2]
[335960354,1724644239314,-783.11,0.00012084,2]
[335960355,1724644239324,-725.12,0.00012084,2]
[335960357,1724644239333,-786.46,0.00012084,2]
[335960359,1724644239342,-537.72,0.00012084,2]
[335960361,1724644239351,-897.21,0.00012084,2]
[335960363,1724644239361,-599.08,0.00012084,2]
[335960366,1724644239371,-500.0,0.00012084,2]
[335960368,1724644239381,-500.0,0.00012084,2]
[335960370,1724644239391,-1103.7,0.00012084,2]
[335960372,1724644239402,-500.0,0.00012084,2]
[335960374,1724644239412,-604.94,0.00012084,2]
[335960376,1724644239423,-1037.53,0.00012084,2]
[335960378,1724644239434,-500.0,0.00012084,2]
[335960381,1724644239444,-532.62,0.00012084,2]
[335960383,1724644239454,-500.0,0.00012084,2]
[335960384,1724644239462,-660.08,0.00012084,2]
[335960386,1724644239472,-500.0,0.00012084,2]
[335960389,1724644239481,-539.27,0.00012084,2]
[335960391,1724644239490,-864.06,0.00012084,2]
[335960393,1724644239499,-500.0,0.00012084,2]
[335960395,1724644239509,-500.0,0.00012084,2]
[335960397,1724644239518,-500.0,0.00012084,2]
[335960399,1724644239527,-626.34,0.00012084,2]
[335960400,1724644239537,-991.58,0.00012084,2]
[335960402,1724644239546,-500.0,0.00012084,2]
[335960404,1724644239556,-516.96607338,0.00012084,2]
[335960406,1724644239565,-556.04,0.00012084,2]
[335960409,1724644239575,-500.0,0.00012084,2]
[335960411,1724644239587,-500.0,0.00012084,2]
[335960413,1724644239597,-586.47,0.00012084,2]
[335960415,1724644239607,-656.62,0.00012084,2]
[335960417,1724644239616,-559.87,0.00012084,2]
[335960419,1724644239627,-767.01,0.00012084,2]
[335960421,1724644239637,-500.0,0.00012084,2]
[335960423,1724644239648,-500.0,0.00012084,2]
[335960426,1724644239659,-553.91,0.00012084,2]
[335960428,1724644239669,-681.56,0.00012084,2]
[335960430,1724644239678,-512.50654981,0.00012084,2]
[335960432,1724644239688,-11521.45,0.00012084,2]
[335960434,1724644239698,-762.06,0.00012084,2]
[335960436,1724644239707,-738.92,0.00012084,2]
[335960438,1724644239717,-500.0,0.00012084,2]
[335960440,1724644239726,-500.0,0.00012084,2]
[335960442,1724644239736,-505.18,0.00012084,2]
[335960444,1724644239745,-500.0,0.00012084,2]
[335960446,1724644239754,-500.0,0.00012084,2]
[335960448,1724644239763,-578.47664796,0.00012084,2]
[335960450,1724644239772,-671.68,0.00012084,2]
[335960452,1724644239783,-3055.77,0.00012084,2]
[335960454,1724644239797,-562.9,0.00012084,2]
[335960457,1724644239808,-500.0,0.00012084,2]
[335960459,1724644239818,-500.0,0.00012084,2]
[335960462,1724644239831,-500.0,0.00012084,2]
[335960464,1724644239842,-531.63,0.00012084,2]
[335960466,1724644239852,-879.92,0.00012084,2]
[335960468,1724644239865,-771.45,0.00012084,2]
[335960470,1724644239876,-500.0,0.00012084,2]
[335960472,1724644239887,-2463.76,0.00012084,2]
[335960474,1724644239896,-654.28,0.00012084,2]
[335960476,1724644239905,-500.0,0.00012084,2]
[335960478,1724644239915,-2827.26,0.00012084,2]
[335960480,1724644239925,-500.0,0.00012084,2]
[335960482,1724644239934,-500.0,0.00012084,2]
[335960484,1724644239944,-890.75,0.00012084,2]
[335960486,1724644239953,-500.0,0.00012084,2]
[335960488,1724644239963,-500.0,0.00012084,2]
[335960491,1724644239973,-753.47,0.00012084,2]
[335960492,1724644239984,-500.0,0.00012084,2]
[335960495,1724644239995,-1337.29,0.00012084,2]
[335960497,1724644240005,-500.0,0.00012084,2]
[335960500,1724644240029,-628.93,0.00012084,2]
[335960502,1724644240040,-500.0,0.00012084,2]
[335960504,1724644240052,-500.0,0.00012084,2]
[335960506,1724644240063,-500.0,0.00012084,2]
[335960508,1724644240075,-500.0,0.00012084,2]
[335960511,1724644240086,-500.0,0.00012084,2]
[335960513,1724644240097,-500.0,0.00012084,2]
[335960515,1724644240107,-230.8585674,0.00012084,2]
[335960517,1724644240118,-790.7,0.00012084,2]
[335960519,1724644240129,-562.53,0.00012084,2]
[335960522,1724644240139,-622.54,0.00012084,2]
[335960524,1724644240148,-1122.96,0.00012084,2]
[335960526,1724644240160,-500.0,0.00012084,2]
[335960528,1724644240170,-500.0,0.00012084,2]
[335960530,1724644240180,-569.39,0.00012084,2]
[335960532,1724644240189,-885.69,0.00012084,2]
[335960534,1724644240199,-16615.41,0.00012084,2]
[335960536,1724644240209,-500.0,0.00012084,2]
[335960538,1724644240218,-500.0,0.00012084,2]
[335960540,1724644240227,-3799.25,0.00012084,2]
[335960542,1724644240236,-3802.3,0.00012084,2]
[335960544,1724644240246,-792.37,0.00012084,2]
[335960546,1724644240256,-535.88,0.00012084,2]
[335960548,1724644240265,-755.93,0.00012084,2]
[335960550,1724644240275,-500.0,0.00012084,2]
[335960552,1724644240285,-500.0,0.00012084,2]
[335960554,1724644240294,-500.0,0.00012084,2]
[335960556,1724644240303,-500.0,0.00012084,2]
[335960558,1724644240315,-910.82,0.00012084,2]
[335960561,1724644240326,-1709.24,0.00012084,2]
[335960563,1724644240335,-638.2,0.00012084,2]
[335960565,1724644240344,-557.71,0.00012084,2]
[335960567,1724644240353,-649.73,0.00012084,2]
[335960569,1724644240362,-736.07,0.00012084,2]
[335960571,1724644240371,-2854.34,0.00012084,2]
[335960573,1724644240382,-1100.48,0.00012084,2]
[335960575,1724644240392,-500.0,0.00012084,2]
[335960577,1724644240401,-746.83,0.00012084,2]
[335960579,1724644240410,-764.16,0.00012084,2]
[335960581,1724644240420,-500.0,0.00012084,2]
[335960583,1724644240430,-500.0,0.00012084,2]
[335960586,1724644240439,-1159.88,0.00012084,2]
[335960589,1724644240449,-500.0,0.00012084,2]
[335960591,1724644240459,-1268.49,0.00012084,2]
[335960593,1724644240468,-262683.819126,0.00012085,2]
[335960595,1724644240478,-1394.56,0.00012086,2]
[335960597,1724644240487,-955.27,0.00012086,2]
[335960599,1724644240496,-576.91,0.00012086,2]
[335960601,1724644240506,-1173.26,0.00012086,2]
[335960603,1724644240516,-2282.71,0.00012086,2]
[335960605,1724644240526,-5343.18,0.00012086,2]
[335960608,1724644240536,-500.0,0.00012086,2]
[335960610,1724644240545,-500.0,0.00012086,2]
[335960612,1724644240555,-547.52,0.00012086,2]
[335960614,1724644240564,-816.61,0.00012086,2]
[335960616,1724644240574,-500.0,0.00012086,2]
[335960618,1724644240584,-500.0,0.00012086,2]
[335960620,1724644240593,-500.0,0.00012086,2]
[335960622,1724644240603,-500.0,0.00012086,2]
[335960624,1724644240613,-673.79,0.00012086,2]
[335960626,1724644240623,-10088.08,0.00012086,2]
[335960628,1724644240633,-716.54,0.00012086,2]
[335960630,1724644240642,-689.59,0.00012086,2]
[335960632,1724644240652,-451.85018972,0.00012095,2]
[335960634,1724644240661,-500.0,0.00012095,2]
[335960636,1724644240672,-605.79887429,0.00012095,2]
[335960638,1724644240682,-500.0,0.00012095,2]
[335960640,1724644240691,-619.29788985,0.00012095,2]
[335960642,1724644240701,-500.0,0.00012095,2]
[335960644,1724644240711,-500.0,0.00012095,2]
[335960646,1724644240720,-500.0,0.00012095,2]
[335960648,1724644240730,-500.0,0.00012095,2]
[335960650,1724644240740,-1101.97,0.00012095,2]
[335960652,1724644240751,-500.0,0.00012095,2]
[335960655,1724644240762,-500.0,0.00012095,2]
[335960657,1724644240773,-500.0,0.00012095,2]
[335960659,1724644240782,-500.0,0.00012095,2]
[335960661,1724644240794,-1088.9,0.00012095,2]
[335960663,1724644240803,-500.0,0.00012095,2]
[335960665,1724644240813,-500.0,0.00012095,2]
[335960667,1724644240823,-500.0,0.00012095,2]
[335960669,1724644240835,-500.0,0.00012095,2]
[335960671,1724644240848,-1251.58,0.00012095,2]
[335960673,1724644240858,-648.92,0.00012095,2]
[335960676,1724644240870,-500.0,0.00012095,2]
[335960678,1724644240880,-500.0,0.00012095,2]
[335960680,1724644240890,-500.0,0.00012095,2]
[335960682,1724644240899,-1040.09,0.00012095,2]
[335960684,1724644240909,-500.0,0.00012095,2]
[335960686,1724644240918,-500.0,0.00012095,2]
[335960688,1724644240927,-565.06,0.00012095,2]
[335960690,1724644240937,-529.48,0.00012095,2]
[335960692,1724644240947,-500.0,0.00012095,2]
[335960694,1724644240958,-500.0,0.00012095,2]
[335960696,1724644240969,-500.0,0.00012095,2]
[335960698,1724644240979,-500.0,0.00012095,2]
[335960700,1724644240989,-500.0,0.00012095,2]
[335960702,1724644241000,-500.0,0.00012095,2]
[335960705,1724644241011,-1215.16,0.00012095,2]
[335960707,1724644241023,-500.0,0.00012095,2]
[335960709,1724644241035,-500.0,0.00012095,2]
[335960711,1724644241046,-583.52,0.00012095,2]
[335960714,1724644241058,-500.0,0.00012095,2]
[335960716,1724644241068,-503.45,0.00012095,2]
[335960718,1724644241078,-552.42,0.00012095,2]
[335960720,1724644241087,-682.34,0.00012095,2]
[335960722,1724644241097,-594.16,0.00012095,2]
[335960724,1724644241111,-338.3643911,0.00012095,2]
[335960726,1724644241121,-500.0,0.00012095,2]
[335960727,1724644241131,-500.0,0.00012095,2]
[335960730,1724644241143,-500.0,0.00012095,2]
[335960732,1724644241153,-500.0,0.00012095,2]
[335960734,1724644241164,-647.87,0.00012095,2]
[335960736,1724644241176,-500.0,0.00012095,2]
[335960738,1724644241188,-500.0,0.00012095,2]
[335960741,1724644241199,-745.47,0.00012095,2]
[335960743,1724644241208,-500.0,0.00012095,2]
[335960745,1724644241218,-500.0,0.00012095,2]
[335960747,1724644241229,-500.0,0.00012095,2]
[335960749,1724644241239,-500.0,0.00012095,2]
[335960751,1724644241250,-500.0,0.00012095,2]
[335960753,1724644241260,-672.1,0.00012095,2]
[335960755,1724644241270,-594.55,0.00012095,2]
[335960757,1724644241280,-537.44,0.00012095,2]
[335960759,1724644241290,-500.0,0.00012095,2]
[335960761,1724644241300,-500.0,0.00012095,2]
[335960763,1724644241311,-723.08,0.00012095,2]
[335960766,1724644241323,-500.0,0.00012095,2]
[335960768,1724644241333,-500.0,0.00012095,2]
[335960770,1724644241344,-500.0,0.00012095,2]
[335960772,1724644241355,-609.85291189,0.00012095,2]
[335960774,1724644241364,-514.1,0.00012095,2]